{"text_format":"1","workbook":"xlsx","n_sheets":13,"sheets":["Mittelabrufvordruck","Checkliste","Summen|Deckblatt","Vergaben","sonstige private Mittel","sonstige öffentliche Mittel","Landesmittel","1.1","1.2","1.3","Mittelabrufprüfung","Auszahlungsberechnung","Hilfstabelle"],"not_rendered":{"charts":0,"images":6,"macros":1,"external_links":2,"defined_names":35,"comments":1,"pivot_tables":0},"unopened":[],"bounds":{"document_bytes":16777216,"sheet_cells":100000,"rows_first":2000,"rows_last":500,"rows_between":2000,"halvings":0,"cell_chars":16384,"cell_head_chars":4096},"cells_cut":0,"cells_raw":0,"read":"whole","date_system":"1900"}

{"sheet":"Mittelabrufvordruck","index":0,"n_rows":91,"n_cols":17,"rows_kept":91,"cut":false,"hidden":false,"merged":[[3,3,3,4],[3,7,3,13],[5,3,5,16],[7,3,7,16],[9,3,9,16],[89,0,89,2],[89,5,89,16],[26,0,26,5],[13,2,13,16],[15,8,15,9],[28,1,28,7],[33,1,33,5],[17,2,17,15],[45,1,45,2],[34,1,34,2],[36,1,36,9],[35,1,35,8],[83,1,83,16],[5,0,5,2],[11,3,11,16],[78,0,78,16],[80,1,80,16],[81,1,81,16],[66,1,66,16],[68,1,68,16],[70,1,70,16],[72,1,72,16],[74,1,74,16],[76,1,76,16]]}
[]
[]
[null,null,null,"Antragsnummer:"]
[null,null,null,"ZAM",null,2,"-"]
[null,null,null,"Zuwendungsbescheid vom"]
["Investitions- und Förderbank"]
["Niedersachsen - NBank",null,null,"Zuwendungsempfänger"]
["Zuschuss Arbeitsmarkt"]
["Günther-Wagner-Allee 12 -16",null,null,"Straße, PLZ, Ort"]
["30177 Hannover"]
[null,null,null,"Ansprechpartner: Name, Telefon, E-Mail"]
[]
[]
[null,"Förderprogramm:","bitte auswählen!"]
[]
[null,null,"Mittelanforderung",null,null,"lfd. Nr.",null,null,null,null,null,"  / ",null,null,null,"Jahr"]
[]
["Maßnahmetitel"]
[]
["Angaben zur Ermittlung der zustehenden Zuwendung"]
[]
["1.","Ausgaben des laufenden Mittelabrufes"]
[null,"1.1 Bezüge Integrationsmoderator/in inkl. Sozialausgaben",null,null,null,null,null,null,null,null,null,null,null,null,null,{"$f":"'Summen|Deckblatt'!B15","v":0},"EUR"]
[null,"1.2 Externe Beratungskompetenz (max. 5.000 € jährlich)",null,null,null,null,null,null,null,null,null,null,null,null,null,{"$f":"'Summen|Deckblatt'!B16","v":0},"EUR"]
[null,"1.3 Pauschale für Verwaltung, Sprachmittlung und Fahrtkosten (8.000 € jährlich)",null,null,null,null,null,null,null,null,null,null,null,null,null,{"$f":"'Summen|Deckblatt'!B17","v":0},"EUR"]
[null,"1.4 Gesamtbetrag der zuwendungsfähigen tatsächlichen Ausgaben",null,null,null,null,null,null,null,null,null,null,null,null,null,{"$f":"'Summen|Deckblatt'!B19","v":0},"EUR"]
["Berechnung des angeforderten Auszahlungsbetrages"]
[null,null,null,null,null,null,null,null,null,null,null,null,null,null,null,"Landesmittel"]
["2.\n","Bewilligte Zuwendung lt. Finanzierungsplan für den gesamten Projektzeitraum (s. Anlage zum Zuwendungs- bzw. aktuellen Änderungsbescheid)",null,null,null,null,null,null,null,null,null,null,null,null,500,null,"EUR"]
["3.","Im bisherigen Projektverlauf bereits erhalten",null,null,null,null,null,null,null,null,null,null,null,null,null,null,"EUR"]
["4.","Verbleiben (Differenz Beträge Ziffer 4. und Ziffer 5.)",null,null,null,null,null,null,null,null,null,null,null,null,null,{"$f":"IF(P29=\"\",\"\",($P$29-$P$30))","v":""},"EUR"]
[]
["5.","Berechnungsgrundlagen"]
[null,"   a) Gesamtbetrag der zuwendungsfähigen Ausgaben (Ziffer 1.4 des lfd. Mittelabrufes) ",null,null,null,null,null,null,null,null,null,null,null,null,null,{"$f":"P26","v":0},"EUR"]
[null,"   b) Summe der mit Erläuterungsschreiben mitgeteilten tatsächlich anerkannten   \n       Ausgaben in den bisherigen Mittelabrufen im bisherigen Projektverlauf",null,null,null,null,null,null,null,null,null,null,null,null,null,null,"EUR"]
[null,"   c) Zuwendungsfähige Ausgaben für den gesamten Projektzeitraum (Summe Ziffer 5a + Ziffer 5b)",null,null,null,null,null,null,null,null,null,null,null,null,null,{"$f":"$P$34+$P$35","v":0},"EUR"]
[null,"   d) Zuwendungsfähige Ausgaben lt. Finanzierungsplan für den gesamten \n       Projektzeitraum (s. Anlage zum Zuwendungs- bzw. aktuell. Änderungsbescheid)\")",null,null,null,null,null,null,null,null,null,null,null,null,null,null,"EUR"]
[]
["  6. Niedrigster Betrag aus Ziffern 5c) und 5d)",null,null,null,null,null,null,null,null,null,null,null,null,null,null,{"$f":"MIN($P$36,$P$37)","v":0},"EUR"]
[]
["7.","Berechnung der Auszahlung",null,null,null,null,null,null,null,null,null,null,null,null,null,"aus Landesmitteln"]
[null,"Betrag gemäß Ziffer 6",null,null,null,null,null,null,null,null,null,null,null,null,null,{"$f":"$P$39","v":0},"EUR"]
[null,"x Förderquote gemäß Zuwendungsbescheid / Änderungsbescheid",null,null,null,null,null,null,null,null,null,null,null,null,null,{"$f":"IF($P$29=0,\"\",$P$29/$P$37)","v":""}]
[null," = Ergebnis",null,null,null,null,null,null,null,null,null,null,null,null,null,{"$f":"IF(ISERROR($P$42*$P$43),\"\",$P$42*$P$43)","v":""},"EUR"]
[null,"Abzüglich bereits erhaltener Landesmittel gemäß Ziffer 3.",null,null,null,null,null,null,null,null,null,null,null,null,null,{"$f":"$P$30","v":0},"EUR"]
[null,"Auszahlung aus Landesmitteln ",null,null,null,null,null,null,null,null,null,null,null,null,null,{"$f":"($P$44-$P$45)","v":{"$error":"#VALUE!"}},"EUR"]
[null,"max. möglicher Auszahlungsbetrag für den laufenden Mittelabruf",null,null,null,null,null,null,null,null,null,null,null,null,null,{"$f":"IF($P$46>$P$31,MIN($P$31),MIN($P$46))","v":{"$error":"#VALUE!"}},"EUR"]
[]
[null,"Gesamtauszahlungsbetrag Landesmittel",null,null,null,null,null,null,null,null,null,null,null,null,null,{"$f":"SUM($P$47:$P$47)","v":{"$error":"#VALUE!"}},"EUR"]
[null,"ggf. abweichender geringerer Auszahlungsbetrag zu obiger Berechnung",null,null,null,null,null,null,null,null,null,null,null,null,null,null,"EUR"]
["Angeforderter Auszahlungsbetrag (max. jedoch der berechnete Betrag gemäß Ziffer 7.)",null,null,null,null,null,null,null,null,null,null,null,null,null,null,{"$f":"IF(P50=\"\",P49,MIN(P49,P50))","v":{"$error":"#VALUE!"}},"EUR"]
[]
["Gesamtauszahlungsbetrag",null,null,null,null,null,null,null,null,null,null,null,null,null,null,{"$f":"SUM(P51)","v":{"$error":"#VALUE!"}},"EUR"]
["Bankverbindung:"]
["Bitte benutzen Sie bei Überweisung des angeforderten Teilbetrages folgende Bankverbindung:"]
[]
[null,"IBAN: "]
[]
[null,"BIC: "]
[]
[null,"Referenz: "]
[]
[null,"Kassenzeichen: "]
[]
["Erklärung"]
[]
["1.","Ich/Wir erkläre(n), dass die Zuwendung wirtschaftliche und sparsam verwendet wird und die eigenen und sonstigen Mittel anteilig mit etwaigen Zuwendungen anderer Zuwendungsgeber eingesetzt werden. Die sich aus einer evtl. überhöhten Zuwendungsanforderung ergebenden Folgen aus dem Zuwendungsbescheid einschließlich der Nebenbestimmungen und dem jeweiligen Haushaltsgesetz ergebenden Folgen sind mir/uns bekannt."]
[]
["2.","Die vorgenannten Angaben stimmen mit dem/den Zuwendungsbescheid(en), den Büchern und den Belegen überein. Die Ausgaben waren notwendig. Es ist wirtschaftlich und sparsam verfahren worden. Soweit die Möglichkeit zum Vorsteuerabzug nach § 15 Umsatzsteuergesetz besteht, wurden nur die Entgelte (Preise ohne Umsatzsteuer) nachgewiesen/bzw. geltend gemacht (Nr. 6.4 ANBest-P)."]
[]
["3.","Rückforderung von Zuwendungen (Bitte Zutreffendes ankreuzen!)"]
[]
["         ","Ich/Wir erkläre(n), dass mir/uns bis heute bewilligte Zuwendungen, sei es der NBank, sei es einer anderen staatlichen Stelle oder der Europäischen\nKommission bisher nicht wegen formeller und/oder materieller Rechtswidrigkeit (insbesondere wegen Unvereinbarkeit mit dem EU-Beihilfenrecht\nnach Art. 107, 108 Vertrag über die Arbeitsweise der EU) aufgehoben und zurückgefordert wurden oder "]
["             "]
["           ","im Falle einer diesbezüglichen Rückforderungsentscheidung vollständig zurückgezahlt wurden."]
[]
[null,"Mir/Uns ist bekannt, dass eine Auszahlung solange unterbleibt, bis die erhaltene Zuwendung vollständig und nach Maßgabe des jeweiligen Rückforderungsbescheides zurückgezahlt wurde. Vorstehende Erklärung ist eine subventionserhebliche Tatsache. Mir/Uns ist insoweit ebenfalls bekannt, dass ich/wir jede zukünftige Abweichung meiner/unserer vorstehenden Angaben unverzüglich der NBank mitteilen muss/müssen. \n\n Dazu gehören auch zukünftig ergehende Rückforderungsentscheidungen o. g. Stellen."]
[]
["4. Erklärung zum verbindlichen Finanzierungsplan (bitte unbedingt vollständig ausfüllen, weil sonst keine Zahlung möglich ist):"]
[]
[null,"Ich/Wir erkläre(n), dass die dem vorgenannten Zuwendungsbescheid zugrundeliegende Kostenaufstellung und der Finanzierungsplan eingehalten werden. "]
["           ","Mir/Uns ist bekannt, dass ich/wir verpflichtet bin/sind, jede Änderung der Finanzierung oder Ermäßigung der Gesamtausgaben gem. der Nr. 5 ANBest-P der Bewilligungsbehörde mitzuteilen."]
[]
["           ","Der mit dem Zuwendungsbescheid / Änderungsbescheid für verbindlich erklärte Finanzierungsplan hat sich entsprechend dem beigefügten aktuellen Finanzierungsplan geändert."]
["           ","Ferner erkläre(n) ich/wir, dass folgende Unterlagen der Mittelanforderung beigefügt sind:"]
["   "]
["          ","Die kompletten Nachweise im Original, die der NBank für dieses Projekt noch nicht vorgelegen haben."]
[]
[]
[]
["Ort, Datum",null,null,null,null,"Rechtsverbindliche Unterschrift(en) des Zuwendungsempfängers"]

{"sheet":"Checkliste","index":1,"n_rows":60,"n_cols":5,"rows_kept":60,"cut":false,"hidden":false,"merged":[[5,1,5,3],[14,2,14,4],[27,1,27,3],[32,1,32,3],[19,1,19,3],[20,1,20,3],[9,1,9,3]]}
[]
[]
[]
[]
[]
[null,"                        Checkliste Unterlagen Mittelabruf"]
[]
[null,"Für das Programm"]
[]
[null,{"$f":"Mittelabrufvordruck!$C$14","v":"bitte auswählen!"}]
[]
[]
[]
[null,"Antragsnummer:",{"$f":"Mittelabrufvordruck!$H$4","v":0}]
[null,"Maßnahmetitel:",{"$f":"Mittelabrufvordruck!$C$18","v":0}]
[]
[null,{"$f":"Mittelabrufvordruck!C16 & Mittelabrufvordruck!F16 & Mittelabrufvordruck!I16","v":"Mittelanforderunglfd. Nr."},"für das Jahr:",{"$f":"Mittelabrufvordruck!Q16","v":0}]
[null,"Datum Mittelabruf (Formular Mittelabruf)"]
[]
[null,"1. Die Unterlagen zum Mittelabruf sind in der nachfolgenden Reihenfolge mit entsprechend beschrifteten Trennstreifen und in gehefteter Form (Ordner) bei der NBank einzureichen."]
[null,"2. Die Checkliste ist vor dem Versand des Mittelabrufs an die NBank mit den zusammengestellten Unterlagen abzugleichen und dem Mittelabruf ausgefüllt beizulegen."]
[null,"3. Es sind die auf unserer Internetseite www.nbank.de zur Verfügung gestellten Formulare zu verwenden."]
[null,"4. Unvollständige Mittelabrufe werden ungeprüft zurückgeschickt."]
[]
[null,"Unterlagen zu jedem Mittelabruf ",null,null,"beigelegt/versendet"]
[null,"1. Checkliste Unterlagen Mittelabruf"]
[null,"2. Mittelabrufvordruck per Post und mit Originalunterschrift"]
[null,"3. Aufstellung der vergebenen Aufträge und entsprechende Vergleichsangebote und \n    Vergabevermerke/Begründung der Auswahlentscheidung oder: Negativmitteilung"]
[null,"4. Belegliste, die ausschließlich die \n    Ausgaben des Mittelabrufes abbildet","elektronisch (Excel)*"]
[null,null,"Papierform"]
[null,"5. Sofern zutreffend: Aktuell gültiger \n    Arbeitsvertrag der/des   \n    Integrationsmoderatorin/en, \n    falls dieser noch nicht vorgelegen hat ","elektronisch ( Excel)*"]
[null,null,"Papierform"]
[null,"6. Die kompletten Belege der tatsächlichen (direkten) Ausgaben im Original** \n    auf denen die Ausgaben der Belegliste beruhen -ausgenommen der Pauschale-\n    (je Ausgabenposition getrennt und entsprechend der in der Belegliste aufgeführten \n    Reihenfolge abgeheftet)"]
[]
[null,"* Dateien wurden per E-Mail versendet am ",null,"an Herrn / Frau"]
[null,"** Fehlende Belege werden nicht nachgefordert (vorläufige Kürzung der Ausgaben)"]
[]
[]
[]
[]
[]
[]
[]
[]
[null,"zum Mittelabruf 1. Quartal"]
[null,"zum Mittelabruf 2. Quartal"]
[null,"zum Mittelabruf 3. Quartal"]
[null,"zum Mittelabruf 4. Quartal"]
[null,"zum Mittelabruf 1. und 2. Quartal"]
[null,"zum Mittelabruf 1. bis 3. Quartal"]
[null,"zum Mittelabruf 1. bis 4. Quartal"]
[null,"zum Mittelabruf 2. und 3. Quartal"]
[null,"zum Mittelabruf 2. bis 4. Quartal"]
[null,"zum Mittelabruf 3. und 4. Quartal"]
[]
[null,2011]
[null,2012]
[null,2013]
[null,2014]
[null,2015]

{"sheet":"Summen|Deckblatt","index":2,"n_rows":31,"n_cols":16,"rows_kept":31,"cut":false,"hidden":false,"merged":[[0,0,0,1],[4,1,4,2],[4,3,4,4],[5,1,5,2],[5,3,5,4],[2,1,2,2],[7,3,7,4],[8,3,8,4],[9,3,9,4],[8,1,9,2],[6,1,7,2],[10,3,10,4],[11,3,11,4],[12,1,12,2],[12,3,12,4],[23,1,23,2],[10,1,11,2],[13,1,13,2],[14,1,14,2],[14,3,14,5],[24,0,24,2],[14,6,14,7],[16,1,16,2],[17,1,17,2],[18,1,18,2],[15,1,15,2]]}
["Bericht über tatsächliche Einnahmen/Ausgaben:",null,null,null,null,null,null,null,null,null,null,null,null,null,null,0]
[]
["Förderprogramm:",{"$f":"IF(Mittelabrufvordruck!$C$14=Hilfstabelle!A2,\"\",Mittelabrufvordruck!$C$14)","v":""}]
[]
["Förderjahr: ",{"$f":"Mittelabrufvordruck!Q16","v":0}]
[]
["Antragsnummer:",{"$f":"Mittelabrufvordruck!$H$4","v":0}]
[]
["Zuwendungsbescheid vom:",{"$f":"Mittelabrufvordruck!$D$6","v":"00:00:00"}]
[]
["Zuwendungsempfänger:",{"$f":"Mittelabrufvordruck!$D$8","v":0}]
[]
[]
[]
[{"$f":"('1.1'!A1)","v":"1.1 Bezüge Integrationsmoderator/in inkl. Sozialabgaben"},{"$f":"SUM('1.1'!F2)","v":0}]
[{"$f":"'1.2'!A1:E1","v":"1.2 Externe Beratungskompetenz (max. 5.000 € jährlich)"},{"$f":"'1.2'!F2","v":0}]
[{"$f":"'1.3'!A1:B1","v":"1.3 Pauschale für Verwaltung, Sprachmittlung und Fahrtkosten (8.000 € jährlich)"},{"$f":"'1.3'!E2","v":0}]
[]
["Summe der zuwendungsfähigen Gesamtausgaben:",{"$f":"SUM(B15:B17)","v":0}]
[]
[]
["Vergabeverfahren durchgeführt","Ja","        Nein"]
["wenn ja, bitte tragen Sie die Vergaben in den entsprechenden Reiter ein"]
[]
["Die Angaben in der zu Grunde liegenden Belegliste stimmt mit den Büchern überein und sind jederzeit anhand von Belegen nachprüfbar."]
[]
[]
["Ort, Datum"]
[]
[]
["Rechtsverb. Unterschrift, Stempel "]

{"sheet":"Vergaben","index":3,"n_rows":17,"n_cols":12,"rows_kept":17,"cut":false,"hidden":false,"merged":[[14,2,14,10],[15,2,15,10]]}
[null,null,null,null,"Vergabeart"]
["Lfd. Nr. ","Lfd.\nNr. \nin \nBeleg- liste\nMA/VN","Auftrag/ Gewerk","geschätzter     Auftragswert \nvor Beginn des \nVergabe-verfahrens","freihändige Vergabe\n (es sind mindestens 3 Anbieter zur Abgabe eines Angebots aufzufordern)\n*1",null,"Beschränkte Ausschreibung\n (bis 2011 sind mindestens 3 ab 2012 5 Anbieter zur Abgabe eines Angebots aufzufordern) \n*2",null,"öffentliche Ausschreibung\n*3",null,"europaweite Ausschreibung"]
[null,null,null,null,"Name","Preis","Name","Preis","Name","Preis","Name","Preis"]
[]
[]
[]
[]
[]
[]
[]
[]
[]
[]
[]
["*1",null,"Die Vergleichsangebote und Vergabevermerke /  Begründung der Auswahlentscheidung sind immer einzureichen.\nFalls weniger als 3 Angebote eingeholt wurden oder nicht der günstigste Anbieter beauftragt wurde, ist dies zu begründen. "]
["*2",null,"Falls zu wenige Anbieter zur Abgabe eines Angebots aufgefordert wurden, ist dies zu begründen. Einzureichende Unterlagen sind der Vergabevermerk, die Niederschrift\nüber die Öffnung der Angebote und die Aufforderung zur Abgabe eines Angebotes (Kopie des verwendeten Musters reicht aus).\n"]
["*3",null,"Zusätzlich zu den zur beschränkten Ausschreibung einzureichenden Unterlagen ist die Bekanntmachung der Ausschreibung einzureichen."]

{"sheet":"sonstige private Mittel","index":4,"n_rows":38,"n_cols":16,"rows_kept":38,"cut":false,"hidden":false,"merged":[[0,0,0,2]]}
["Einnahmen:  sonstige private Mittel"]
[null,null,null,null,"Summe:",{"$f":"ROUND(SUM(F4:F2000),2)","v":0},null,{"$f":"SUM(H4:H2000)","v":0},{"$f":"SUM(I4:I2000)","v":0},null,null,null,null,null,null,0]
["Lfd. Nr.","Belegnummer","Datum der Zahlung","Einzahler"," Grund der Zahlung","Einnahmen",null,"Kürzungen Einnahmen Qualifizierung","Kürzungen Einnahmen Investitionen"]
[null,null,null,null,null,null,null,{"$f":"IF(F4=\"\",\"\",F4-G4)","v":""}]
[null,null,null,null,null,null,null,""]
[null,null,null,null,null,null,null,""]
[null,null,null,null,null,null,null,""]
[null,null,null,null,null,null,null,""]
[null,null,null,null,null,null,null,""]
[null,null,null,null,null,null,null,""]
[null,null,null,null,null,null,null,""]
[null,null,null,null,null,null,null,""]
[null,null,null,null,null,null,null,""]
[null,null,null,null,null,null,null,""]
[null,null,null,null,null,null,null,""]
[null,null,null,null,null,null,null,""]
[null,null,null,null,null,null,null,""]
[null,null,null,null,null,null,null,""]
[null,null,null,null,null,null,null,""]
[null,null,null,null,null,null,null,""]
[null,null,null,null,null,null,null,""]
[null,null,null,null,null,null,null,""]
[null,null,null,null,null,null,null,""]
[null,null,null,null,null,null,null,""]
[null,null,null,null,null,null,null,""]
[null,null,null,null,null,null,null,""]
[null,null,null,null,null,null,null,""]
[null,null,null,null,null,null,null,""]
[null,null,null,null,null,null,null,""]
[null,null,null,null,null,null,null,""]
[null,null,null,null,null,null,null,""]
[null,null,null,null,null,null,null,""]
[null,null,null,null,null,null,null,""]
[null,null,null,null,null,null,null,""]
[null,null,null,null,null,null,null,""]
[null,null,null,null,null,null,null,""]
[null,null,null,null,null,null,null,""]
[null,null,null,null,null,null,null,""]

{"sheet":"sonstige öffentliche Mittel","index":5,"n_rows":55,"n_cols":16,"rows_kept":55,"cut":false,"hidden":false,"merged":[[0,0,0,2]]}
["Einnahmen:  sonstige öffentliche Mittel"]
[null,null,null,null,"Summe:",{"$f":"ROUND(SUM(F4:F2000),2)","v":0},null,{"$f":"SUM(H4:H2000)","v":0},{"$f":"SUM(I4:I2000)","v":0},null,null,null,null,null,null,0]
["Lfd. Nr.","Belegnummer","Datum der Zahlung","Einzahler"," Grund der Zahlung","Einnahmen",null,"Kürzungen Einnahmen Qualifizierung","Kürzungen Einnahmen Investitionen"]
[null,null,null,null,null,null,null,{"$f":"IF(F4=\"\",\"\",F4-G4)","v":""}]
[null,null,null,null,null,null,null,""]
[null,null,null,null,null,null,null,""]
[null,null,null,null,null,null,null,""]
[null,null,null,null,null,null,null,""]
[null,null,null,null,null,null,null,""]
[null,null,null,null,null,null,null,""]
[null,null,null,null,null,null,null,""]
[null,null,null,null,null,null,null,""]
[null,null,null,null,null,null,null,""]
[null,null,null,null,null,null,null,""]
[null,null,null,null,null,null,null,""]
[null,null,null,null,null,null,null,""]
[null,null,null,null,null,null,null,""]
[null,null,null,null,null,null,null,""]
[null,null,null,null,null,null,null,""]
[null,null,null,null,null,null,null,""]
[null,null,null,null,null,null,null,""]
[null,null,null,null,null,null,null,""]
[null,null,null,null,null,null,null,""]
[null,null,null,null,null,null,null,""]
[null,null,null,null,null,null,null,""]
[null,null,null,null,null,null,null,""]
[null,null,null,null,null,null,null,""]
[null,null,null,null,null,null,null,""]
[null,null,null,null,null,null,null,""]
[null,null,null,null,null,null,null,""]
[null,null,null,null,null,null,null,""]
[null,null,null,null,null,null,null,""]
[null,null,null,null,null,null,null,""]
[null,null,null,null,null,null,null,""]
[null,null,null,null,null,null,null,""]
[null,null,null,null,null,null,null,""]
[null,null,null,null,null,null,null,""]
[null,null,null,null,null,null,null,""]
[null,null,null,null,null,null,null,""]
[null,null,null,null,null,null,null,""]
[null,null,null,null,null,null,null,""]
[null,null,null,null,null,null,null,""]
[null,null,null,null,null,null,null,""]
[null,null,null,null,null,null,null,""]
[null,null,null,null,null,null,null,""]
[null,null,null,null,null,null,null,""]
[null,null,null,null,null,null,null,""]
[null,null,null,null,null,null,null,""]
[null,null,null,null,null,null,null,""]
[null,null,null,null,null,null,null,""]
[null,null,null,null,null,null,null,""]
[null,null,null,null,null,null,null,""]
[null,null,null,null,null,null,null,""]
[null,null,null,null,null,null,null,""]
[null,null,null,null,null,null,null,""]

{"sheet":"Landesmittel","index":6,"n_rows":35,"n_cols":16,"rows_kept":35,"cut":false,"hidden":false,"merged":[[0,0,0,2]]}
["Einnahmen:  bereits erhaltene Landesmittel"]
[null,null,null,null,"Summe:",{"$f":"ROUND(SUM(F4:F500),2)","v":0},{"$f":"ROUND(SUM(G4:G500),2)","v":0},{"$f":"SUM(H4:H200)","v":0},{"$f":"SUM(I4:I200)","v":0},null,null,null,null,null,null,0]
["Lfd. Nr.","Belegnummer","Datum der Zahlung","Einzahler"," Grund der Zahlung","Einnahmen",null,"Kürzungen Einnahmen Qualifizierung","Kürzungen Einnahmen Investitionen"]
[null,null,null,null,null,null,null,{"$f":"IF(F4=\"\",\"\",F4-G4)","v":""}]
[null,null,null,null,null,null,null,{"$f":"IF(F5=\"\",\"\",F5-G5)","v":""}]
[null,null,null,null,null,null,null,""]
[null,null,null,null,null,null,null,""]
[null,null,null,null,null,null,null,""]
[null,null,null,null,null,null,null,""]
[null,null,null,null,null,null,null,""]
[null,null,null,null,null,null,null,""]
[null,null,null,null,null,null,null,""]
[null,null,null,null,null,null,null,""]
[null,null,null,null,null,null,null,""]
[null,null,null,null,null,null,null,""]
[null,null,null,null,null,null,null,""]
[null,null,null,null,null,null,null,""]
[null,null,null,null,null,null,null,""]
[null,null,null,null,null,null,null,""]
[null,null,null,null,null,null,null,""]
[null,null,null,null,null,null,null,{"$f":"IF(F21=\"\",\"\",F21-G21)","v":""}]
[null,null,null,null,null,null,null,""]
[null,null,null,null,null,null,null,""]
[null,null,null,null,null,null,null,""]
[null,null,null,null,null,null,null,""]
[null,null,null,null,null,null,null,""]
[null,null,null,null,null,null,null,""]
[null,null,null,null,null,null,null,""]
[null,null,null,null,null,null,null,""]
[null,null,null,null,null,null,null,""]
[null,null,null,null,null,null,null,""]
[null,null,null,null,null,null,null,""]
[null,null,null,null,null,null,null,""]
[null,null,null,null,null,null,null,""]
[null,null,null,null,null,null,null,""]

{"sheet":"1.1","index":7,"n_rows":89,"n_cols":15,"rows_kept":89,"cut":false,"hidden":false,"merged":[[0,0,0,4]]}
["1.1 Bezüge Integrationsmoderator/in inkl. Sozialabgaben"]
[null,null,{"$f":"IF(COUNT(C4:C1000)<>COUNT(F4:F1000),\"Fehler\",\"\")","v":""},null,"Summe:",{"$f":"IF(C2=\"\",ROUND(SUM(F4:F1000),2),\"\")","v":0},{"$f":"SUM(G4:G1000)","v":0},{"$f":"SUM(H4:H1000)","v":0},null,null,null,null,null,null,0]
["Lfd. Nr.","Belegnummer","Datum der Zahlung","Empfänger","Grund der Zahlung","Ausgaben","Kürzungen","Anerkannte Ausgabe"]
[null,null,null,null,null,null,null,{"$f":"IF(F4=\"\",\"\",F4-G4)","v":""}]
[null,null,null,null,null,null,null,{"$f":"IF(F5=\"\",\"\",F5-G5)","v":""}]
[null,null,null,null,null,null,null,""]
[null,null,null,null,null,null,null,""]
[null,null,null,null,null,null,null,""]
[null,null,null,null,null,null,null,""]
[null,null,null,null,null,null,null,""]
[null,null,null,null,null,null,null,""]
[null,null,null,null,null,null,null,""]
[null,null,null,null,null,null,null,""]
[null,null,null,null,null,null,null,""]
[null,null,null,null,null,null,null,""]
[null,null,null,null,null,null,null,""]
[null,null,null,null,null,null,null,""]
[null,null,null,null,null,null,null,""]
[null,null,null,null,null,null,null,""]
[null,null,null,null,null,null,null,""]
[null,null,null,null,null,null,null,""]
[null,null,null,null,null,null,null,""]
[null,null,null,null,null,null,null,""]
[null,null,null,null,null,null,null,""]
[null,null,null,null,null,null,null,""]
[null,null,null,null,null,null,null,""]
[null,null,null,null,null,null,null,""]
[null,null,null,null,null,null,null,""]
[null,null,null,null,null,null,null,""]
[null,null,null,null,null,null,null,""]
[null,null,null,null,null,null,null,""]
[null,null,null,null,null,null,null,""]
[null,null,null,null,null,null,null,""]
[null,null,null,null,null,null,null,""]
[null,null,null,null,null,null,null,""]
[null,null,null,null,null,null,null,""]
[null,null,null,null,null,null,null,""]
[null,null,null,null,null,null,null,""]
[null,null,null,null,null,null,null,""]
[null,null,null,null,null,null,null,""]
[null,null,null,null,null,null,null,""]
[null,null,null,null,null,null,null,""]
[null,null,null,null,null,null,null,""]
[null,null,null,null,null,null,null,""]
[null,null,null,null,null,null,null,""]
[null,null,null,null,null,null,null,""]
[null,null,null,null,null,null,null,""]
[null,null,null,null,null,null,null,""]
[null,null,null,null,null,null,null,""]
[null,null,null,null,null,null,null,""]
[null,null,null,null,null,null,null,""]
[null,null,null,null,null,null,null,""]
[null,null,null,null,null,null,null,""]
[null,null,null,null,null,null,null,""]
[null,null,null,null,null,null,null,""]
[null,null,null,null,null,null,null,""]
[null,null,null,null,null,null,null,""]
[null,null,null,null,null,null,null,""]
[null,null,null,null,null,null,null,""]
[null,null,null,null,null,null,null,""]
[null,null,null,null,null,null,null,""]
[null,null,null,null,null,null,null,""]
[null,null,null,null,null,null,null,""]
[null,null,null,null,null,null,null,""]
[null,null,null,null,null,null,null,""]
[null,null,null,null,null,null,null,""]
[null,null,null,null,null,null,null,""]
[null,null,null,null,null,null,null,""]
[null,null,null,null,null,null,null,{"$f":"IF(F69=\"\",\"\",F69-G69)","v":""}]
[null,null,null,null,null,null,null,""]
[null,null,null,null,null,null,null,""]
[null,null,null,null,null,null,null,""]
[null,null,null,null,null,null,null,""]
[null,null,null,null,null,null,null,""]
[null,null,null,null,null,null,null,""]
[null,null,null,null,null,null,null,""]
[null,null,null,null,null,null,null,""]
[null,null,null,null,null,null,null,""]
[null,null,null,null,null,null,null,""]
[null,null,null,null,null,null,null,""]
[null,null,null,null,null,null,null,""]
[null,null,null,null,null,null,null,""]
[null,null,null,null,null,null,null,""]
[null,null,null,null,null,null,null,""]
[null,null,null,null,null,null,null,""]
[null,null,null,null,null,null,null,""]
[null,null,null,null,null,null,null,""]
[null,null,null,null,null,null,null,""]
[null,null,null,null,null,null,null,""]

{"sheet":"1.2","index":8,"n_rows":89,"n_cols":15,"rows_kept":89,"cut":false,"hidden":false,"merged":[[0,0,0,4]]}
["1.2 Externe Beratungskompetenz (max. 5.000 € jährlich)"]
[null,null,{"$f":"IF(COUNT(C4:C1000)<>COUNT(F4:F1000),\"Fehler\",\"\")","v":""},null,"Summe:",{"$f":"IF(C2=\"\",ROUND(SUM(F4:F1000),2),\"\")","v":0},{"$f":"SUM(G4:G1000)","v":0},{"$f":"SUM(H4:H1000)","v":0},null,null,null,null,null,null,0]
["Lfd. Nr.","Belegnummer","Datum der Zahlung","Empfänger","Grund der Zahlung","Ausgaben","Kürzungen","Anerkannte Ausgabe"]
[null,null,null,null,null,null,null,{"$f":"IF(F4=\"\",\"\",F4-G4)","v":""}]
[null,null,null,null,null,null,null,{"$f":"IF(F5=\"\",\"\",F5-G5)","v":""}]
[null,null,null,null,null,null,null,""]
[null,null,null,null,null,null,null,""]
[null,null,null,null,null,null,null,""]
[null,null,null,null,null,null,null,""]
[null,null,null,null,null,null,null,""]
[null,null,null,null,null,null,null,""]
[null,null,null,null,null,null,null,""]
[null,null,null,null,null,null,null,""]
[null,null,null,null,null,null,null,""]
[null,null,null,null,null,null,null,""]
[null,null,null,null,null,null,null,""]
[null,null,null,null,null,null,null,""]
[null,null,null,null,null,null,null,""]
[null,null,null,null,null,null,null,""]
[null,null,null,null,null,null,null,""]
[null,null,null,null,null,null,null,""]
[null,null,null,null,null,null,null,""]
[null,null,null,null,null,null,null,""]
[null,null,null,null,null,null,null,""]
[null,null,null,null,null,null,null,""]
[null,null,null,null,null,null,null,""]
[null,null,null,null,null,null,null,""]
[null,null,null,null,null,null,null,""]
[null,null,null,null,null,null,null,""]
[null,null,null,null,null,null,null,""]
[null,null,null,null,null,null,null,""]
[null,null,null,null,null,null,null,""]
[null,null,null,null,null,null,null,""]
[null,null,null,null,null,null,null,""]
[null,null,null,null,null,null,null,""]
[null,null,null,null,null,null,null,""]
[null,null,null,null,null,null,null,""]
[null,null,null,null,null,null,null,""]
[null,null,null,null,null,null,null,""]
[null,null,null,null,null,null,null,""]
[null,null,null,null,null,null,null,""]
[null,null,null,null,null,null,null,""]
[null,null,null,null,null,null,null,""]
[null,null,null,null,null,null,null,""]
[null,null,null,null,null,null,null,""]
[null,null,null,null,null,null,null,""]
[null,null,null,null,null,null,null,""]
[null,null,null,null,null,null,null,""]
[null,null,null,null,null,null,null,""]
[null,null,null,null,null,null,null,""]
[null,null,null,null,null,null,null,""]
[null,null,null,null,null,null,null,""]
[null,null,null,null,null,null,null,""]
[null,null,null,null,null,null,null,""]
[null,null,null,null,null,null,null,""]
[null,null,null,null,null,null,null,""]
[null,null,null,null,null,null,null,""]
[null,null,null,null,null,null,null,""]
[null,null,null,null,null,null,null,""]
[null,null,null,null,null,null,null,""]
[null,null,null,null,null,null,null,""]
[null,null,null,null,null,null,null,""]
[null,null,null,null,null,null,null,""]
[null,null,null,null,null,null,null,""]
[null,null,null,null,null,null,null,""]
[null,null,null,null,null,null,null,""]
[null,null,null,null,null,null,null,""]
[null,null,null,null,null,null,null,""]
[null,null,null,null,null,null,null,{"$f":"IF(F69=\"\",\"\",F69-G69)","v":""}]
[null,null,null,null,null,null,null,""]
[null,null,null,null,null,null,null,""]
[null,null,null,null,null,null,null,""]
[null,null,null,null,null,null,null,""]
[null,null,null,null,null,null,null,""]
[null,null,null,null,null,null,null,""]
[null,null,null,null,null,null,null,""]
[null,null,null,null,null,null,null,""]
[null,null,null,null,null,null,null,""]
[null,null,null,null,null,null,null,""]
[null,null,null,null,null,null,null,""]
[null,null,null,null,null,null,null,""]
[null,null,null,null,null,null,null,""]
[null,null,null,null,null,null,null,""]
[null,null,null,null,null,null,null,""]
[null,null,null,null,null,null,null,""]
[null,null,null,null,null,null,null,""]
[null,null,null,null,null,null,null,""]
[null,null,null,null,null,null,null,""]
[null,null,null,null,null,null,null,""]

{"sheet":"1.3","index":9,"n_rows":89,"n_cols":14,"rows_kept":89,"cut":false,"hidden":false,"merged":[[0,0,0,4]]}
["1.3 Pauschale für Verwaltung, Sprachmittlung und Fahrtkosten (8.000 € jährlich)"]
[null,"      Geltend gemachter Zeitraum ",null,null,{"$f":"SUM(E4:E1000)","v":0},{"$f":"SUM(F4:F1000)","v":0},{"$f":"SUM(G4:G1000)","v":0},null,null,null,null,null,null,0]
["Lfd. Nr.","von","bis ","Tage","Anteilige Pauschale","Kürzungen","Anerkannte Ausgabe"]
[null,null,null,{"$f":"IF(B4>C4,\"0\",((DAY(B4)>1)*(MIN(C4+1,DATE(YEAR(B4), MONTH(B4)+1,1))-B4) + 30*MAX(,12*(YEAR(C4)-YEAR(B4))+MONTH(C4)-MONTH(B4)+(DAY(B4)=1)-(DAY(C4+1)>1)) + DAY(C4)*(DAY(C4+1)>1)*(1-(DAY(B4)>1)*(TEXT(B4,\"JJJJMM\")=TEXT(C4,\"JJJJMM\")))))","v":0},{"$f":"(16000/720)*D4","v":0},null,{"$f":"IF(E4=\"\",\"\",E4-F4)","v":0}]
[null,null,null,{"$f":"IF(B5>C5,\"0\",((DAY(B5)>1)*(MIN(C5+1,DATE(YEAR(B5), MONTH(B5)+1,1))-B5) + 30*MAX(,12*(YEAR(C5)-YEAR(B5))+MONTH(C5)-MONTH(B5)+(DAY(B5)=1)-(DAY(C5+1)>1)) + DAY(C5)*(DAY(C5+1)>1)*(1-(DAY(B5)>1)*(TEXT(B5,\"JJJJMM\")=TEXT(C5,\"JJJJMM\")))))","v":0},{"$f":"(8000/360)*D5","v":0},null,{"$f":"IF(E5=\"\",\"\",E5-F5)","v":0}]
[null,null,null,0,0,null,0,null,"    HINWEIS:"]
[null,null,null,0,0,null,0,null,"    Bitte geben Sie den für den laufenden Mittelabruf geltenden Zeitraum in die grauen Felder ein "]
[null,null,null,0,0,null,0,null,"    Beispiel für 1. und 2. Mittelabruf:"]
[null,null,null,0,0,null,0,null,"    Projektbeginn: 01.04.2017; 1. Mittelabruf: 30.06.2017 = von 01.04.2017 bis 30.06.2017"]
[null,null,null,0,0,null,0,null,"    Tag nach 1. Mittelabruf: 01.07.2017 ; 2. Mittelabruf: 30.10.2017 = von 01.07.2017 bis 30.10.2017"]
[null,null,null,0,0,null,0]
[null,null,null,0,0,null,0]
[null,null,null,0,0,null,0]
[null,null,null,0,0,null,0]
[null,null,null,0,0,null,0]
[null,null,null,0,0,null,0]
[null,null,null,0,0,null,0]
[null,null,null,0,0,null,0]
[null,null,null,0,0,null,0]
[null,null,null,null,null,null,""]
[null,null,null,null,null,null,{"$f":"IF(E21=\"\",\"\",E21-F21)","v":""}]
[null,null,null,null,null,null,""]
[null,null,null,null,null,null,""]
[null,null,null,null,null,null,""]
[null,null,null,null,null,null,""]
[null,null,null,null,null,null,""]
[null,null,null,null,null,null,""]
[null,null,null,null,null,null,""]
[null,null,null,null,null,null,""]
[null,null,null,null,null,null,""]
[null,null,null,null,null,null,""]
[null,null,null,null,null,null,""]
[null,null,null,null,null,null,""]
[null,null,null,null,null,null,""]
[null,null,null,null,null,null,""]
[null,null,null,null,null,null,""]
[null,null,null,null,null,null,""]
[null,null,null,null,null,null,""]
[null,null,null,null,null,null,""]
[null,null,null,null,null,null,""]
[null,null,null,null,null,null,""]
[null,null,null,null,null,null,""]
[null,null,null,null,null,null,""]
[null,null,null,null,null,null,""]
[null,null,null,null,null,null,""]
[null,null,null,null,null,null,""]
[null,null,null,null,null,null,""]
[null,null,null,null,null,null,""]
[null,null,null,null,null,null,""]
[null,null,null,null,null,null,""]
[null,null,null,null,null,null,""]
[null,null,null,null,null,null,""]
[null,null,null,null,null,null,""]
[null,null,null,null,null,null,""]
[null,null,null,null,null,null,""]
[null,null,null,null,null,null,""]
[null,null,null,null,null,null,""]
[null,null,null,null,null,null,""]
[null,null,null,null,null,null,""]
[null,null,null,null,null,null,""]
[null,null,null,null,null,null,""]
[null,null,null,null,null,null,""]
[null,null,null,null,null,null,""]
[null,null,null,null,null,null,""]
[null,null,null,null,null,null,""]
[null,null,null,null,null,null,""]
[null,null,null,null,null,null,""]
[null,null,null,null,null,null,""]
[null,null,null,null,null,null,{"$f":"IF(E69=\"\",\"\",E69-F69)","v":""}]
[null,null,null,null,null,null,""]
[null,null,null,null,null,null,""]
[null,null,null,null,null,null,""]
[null,null,null,null,null,null,""]
[null,null,null,null,null,null,""]
[null,null,null,null,null,null,""]
[null,null,null,null,null,null,""]
[null,null,null,null,null,null,""]
[null,null,null,null,null,null,""]
[null,null,null,null,null,null,""]
[null,null,null,null,null,null,""]
[null,null,null,null,null,null,""]
[null,null,null,null,null,null,""]
[null,null,null,null,null,null,""]
[null,null,null,null,null,null,""]
[null,null,null,null,null,null,""]
[null,null,null,null,null,null,""]
[null,null,null,null,null,null,""]
[null,null,null,null,null,null,""]
[null,null,null,null,null,null,""]

{"sheet":"Mittelabrufprüfung","index":10,"n_rows":30,"n_cols":5,"rows_kept":30,"cut":false,"hidden":true,"merged":[[14,1,14,3],[0,1,0,3],[1,1,1,3],[2,1,2,3],[3,1,3,3]]}
["Mittelabruf vom"]
["Prüfvermerk vom"]
["Förderprogramm",{"$f":"Mittelabrufvordruck!C14","v":"bitte auswählen!"}]
[]
[]
["Ausgabenposition","Ausgaben (lt. Belegliste)","geprüfte Position per Beleg (ohne 1.3)","nicht zuw.fähige Ausgaben","anerkannte Ausgaben"]
["1.1",{"$f":"'1.1'!F2","v":0},0,0,{"$f":"B7-D7","v":0}]
["1.2",{"$f":"'1.2'!F2","v":0},0,0,{"$f":"B8-D8","v":0}]
["1.3",{"$f":"'1.3'!E2","v":0},0,0,{"$f":"B9-D9","v":0}]
["Gesamtsumme",{"$f":"SUM(B7:B9)","v":0},{"$f":"SUM(C7:C9)","v":0},{"$f":"SUM(D7:D9)","v":0},{"$f":"SUM(E7:E9)","v":0}]
[]
[]
[]
[]
["Prüfer"]
[]
[]
[]
[null,"                 (Unterschrift)"]
[]
["Abgleich Gesamtausgaben des Projektes mit den "]
["insgesamt anerkannten Ausgaben des Gesamtprojektes:"]
[]
[]
["Lt. MA-Aktion bisher anerkannte Ausgaben gesamt",null,null,0]
["anerkannte Ausgaben des lfd. MA",null,null,{"$f":"E10","v":0}]
["bewilligte Gesamtausgaben lt. F-Plan",null,null,{"$f":"Mittelabrufvordruck!P37","v":0},{"$f":"IF((D25+D26)=D27,\"\",\"Auf Überschreitung der bewilligten Gesamtausgaben achten!!\")","v":""}]
[null,null,null,{"$f":"D27-(D25+D26)","v":0}]
[]
["Die bewilligten Gesamtausgaben lt. F-Plan sind auf Richtigkeit hin zu prüfen!!!"]

{"sheet":"Auszahlungsberechnung","index":11,"n_rows":48,"n_cols":10,"rows_kept":48,"cut":false,"hidden":true,"merged":[[43,0,43,3],[43,6,43,7],[33,6,34,8],[0,0,0,8],[2,7,2,8],[26,0,26,8],[38,0,38,8],[42,0,42,3],[42,6,42,7],[44,6,44,7],[45,0,45,3],[45,6,45,7],[44,0,44,3],[47,0,47,7]]}
["Berechnungen zum Mittelabruf ",null,null,null,null,null,null,null,null,1]
[]
["               Auszahlung zum Mittelabruf vom",null,null,null,"     lfd. Nummer MA (SAP):",null,null,"Antragsnummer:"]
[null,null,null,null,null,null,null,null,{"$f":"Mittelabrufvordruck!H4","v":0}]
[]
[]
["bewilligte Gesamtausgaben:",null,null,0,null,"Gesamtförderquote:",null,{"$f":"(D8/D7)","v":{"$error":"#DIV/0!"}}]
["Gesamtzuwendung Land",null,null,0]
[null,null,null,null,""]
["LM in Vorjahren bewilligt:",null,null,0]
["LM im lfd. Jahr bewilligt:",null,null,0]
[]
["bereits erhalten LM:",null,null,0]
["noch auszahlbar LM:",null,null,{"$f":"IF(D13>(D10+D11+0.01),D11+D10-D13,(D10+D11-D13))","v":0}]
[]
[]
[]
["Im Projektzeitraum bisher anerkannte Ausgaben:",null,null,null,null,null,0]
["im lfd. Mittelabruf geltend gemachten Ausgaben:",null,null,null,null,null,{"$f":"Mittelabrufvordruck!$P$26","v":0}]
["abzuziehende Finanzkorrekturen:",null,null,null,null,null,{"$f":"Mittelabrufprüfung!$D$10","v":0}]
["anzuerkennende Ausgaben des Mittelabrufs:",null,null,null,null,null,{"$f":"Mittelabrufprüfung!$E$10","v":0}]
["Summe der anerkannten Ausgaben:",null,null,null,null,null,{"$f":"G18+G21","v":0}]
[]
["Berechnungsgrundlage Zuwendung:",null,null,null,{"$f":"G22","v":0}]
["(MIN aus bew. Gesamtausg. / Summe Ausgaben anerkannt)"]
[]
["Berechnung der Auszahlung:"]
[]
["Berechnungsgrundlage:",null,null,{"$f":"E24","v":0}]
["Förderquote gesamt:",null,null,{"$f":"H7","v":{"$error":"#DIV/0!"}},"Ergebnis:",null,{"$f":"D29*D30","v":{"$error":"#DIV/0!"}}]
[]
["bereits erhalten (Gesamtprojekt):",null,null,null,{"$f":"D13","v":0}]
["Auszahlungsbetrag:",null,null,null,{"$f":"G30-E32","v":{"$error":"#DIV/0!"}},"",null,null,""]
["beantragte Auszahlung:",null,null,null,{"$f":"Mittelabrufvordruck!$P$51","v":{"$error":"#VALUE!"}},null,"vorhandene Landesmittel aus den Vorjahren sind immer vorrangig auszuzahlen !!!"]
[]
["Summe max. Auszahlung:",null,null,"LM:",{"$f":"IF(E34=0,0,MIN(E33,E34))","v":{"$error":"#VALUE!"}}]
[]
[]
["SAP-Aktion \"Mittelabruf\" - Berechnung der Eintragungen:"]
["erklärte Ausgaben lfd. MA:",null,null,{"$f":"G19","v":0}]
["Finanzkorrektur lfd. MA:",null,null,{"$f":"G20","v":0},null,"anerkannte Ausgaben lfd. MA:",null,null,{"$f":"G21","v":0}]
[]
["Finanzierungsplan",null,null,null,"Quote:",null,"Ergebnis (Eintragung)"]
["Landesmittel",null,null,null,{"$f":"IF(D8=0,0,D8/D7)","v":0},null,{"$f":"ROUND($I$41*E44,2)","v":0}]
["Sonstige öffentliche Mittel",null,null,null,0,null,{"$f":"ROUND($I$41*E45,2)","v":0}]
["Sonstige private Mittel",null,null,null,{"$f":"100%-E44-E45","v":1},null,0]
[]
["Die o.g. Werte sind im SAP/ABAKUS - Aktion \"Mittelabruf\" zu erfassen, so dass eine Übereinstimmung gewährleistet ist"]

{"sheet":"Hilfstabelle","index":12,"n_rows":22,"n_cols":1,"rows_kept":22,"cut":false,"hidden":true,"merged":[]}
[]
["bitte auswählen!"]
["Außerhalb von Richtlinien"]
["Überbetriebliche Integrationsmoderatorinnen und -moderatoren"]
[]
[]
[1]
[2]
[3]
[4]
[5]
[6]
[7]
[8]
[9]
[10]
[11]
[12]
[]
[2017]
[2018]
[2019]